[Event "Chessity Nationale Pupillendag 2018 - Groep H"]
[Site "Meppel, Netherlands"]
[Date "2018.06.23"]
[Round "4.2"]
[White "Zoet, Wiebe"]
[Black "Huang, Luna"]
[Result "0-1"]
[TimeControl "15 min + 10 sec"]
[WhiteElo "392"]
[BlackElo "488"]

1. e4 {[%clk 00:15:19]} e5 {[%clk 00:15:19]} 2. Bc4 {[%clk 00:15:19]} Nf6
{[%clk 00:15:19]} 3. Bb3 {[%clk 00:15:19]} Bc5 {[%clk 00:15:26]} {[%emt
00:02:42]} 4. Qe2 {[%clk 00:15:42]} {[%emt 00:00:03]} d6 {[%clk 00:15:26]}
{[%emt 00:00:11]} 5. Qc4 {[%clk 00:15:49]} {[%emt 00:00:03]} Be6 {[%clk
00:15:26]} {[%emt 00:00:10]} 6. Qd3 {[%clk 00:15:51]} {[%emt 00:00:07]} Nc6
{[%clk 00:15:07]} {[%emt 00:00:28]} 7. Nf3 {[%clk 00:15:57]} {[%emt 00:00:06]}
d5 {[%clk 00:14:32]} {[%emt 00:00:46]} 8. exd5 {[%clk 00:15:45]} {[%emt
00:00:20]} Bxd5 {[%clk 00:14:11]} {[%emt 00:00:32]} 9. c4 {[%clk 00:15:46]}
{[%emt 00:00:08]} Be4 {[%clk 00:13:42]} {[%emt 00:00:39]} 10. Qxd8+ {[%clk
00:15:48]} {[%emt 00:00:09]} Rxd8 {[%clk 00:13:47]} {[%emt 00:00:05]} 11. Ng5
{[%clk 00:15:46]} {[%emt 00:00:10]} Bxg2 {[%clk 00:13:24]} {[%emt 00:00:35]} 12.
Rg1 {[%clk 00:15:54]} {[%emt 00:00:02]} Be4 {[%clk 00:13:22]} {[%emt 00:00:09]}
13. Nxe4 {[%clk 00:16:01]} {[%emt 00:00:06]} Nxe4 {[%clk 00:13:26]} {[%emt
00:00:07]} 14. d3 {[%clk 00:15:51]} {[%emt 00:00:05]} Bxf2+ {[%clk 00:13:33]}
15. Kf1 {[%clk 00:15:51]} Bxg1 {[%clk 00:13:33]} 16. Kxg1 {[%emt 00:00:25]}
Rxd3 {[%clk 00:13:22]} {[%emt 00:00:17]} 17. Bc2 {[%emt 00:00:17]} Rd4 {[%clk
00:13:18]} 18. Be3 {[%emt 00:00:15]} Rxc4 {[%emt 00:00:05]} 19. b3 {[%clk
00:16:12]} {[%emt 00:00:03]} Rxc2 {[%emt 00:00:08]} 20. Na3 {[%clk 00:16:08]}
{[%emt 00:00:12]} Re2 {[%clk 00:13:12]} {[%emt 00:00:20]} 21. Nc4 {[%clk
00:16:08]} {[%emt 00:00:09]} b5 {[%emt 00:00:10]} 22. Bc1 {[%clk 00:15:38]}
{[%emt 00:00:37]} bxc4 {[%clk 00:13:20]} {[%emt 00:00:07]} 23. bxc4 {[%clk
00:15:43]} {[%emt 00:00:03]} O-O {[%clk 00:13:12]} {[%emt 00:00:19]} 24. Rb1
{[%clk 00:15:42]} {[%emt 00:00:11]} Rxa2 {[%clk 00:13:04]} {[%emt 00:00:19]} 25.
Bb2 {[%emt 00:00:30]} Nd2 {[%emt 00:00:17]} 26. Rd1 {[%emt 00:00:05]} Rxb2
{[%emt 00:00:06]} 27. c5 {[%clk 00:15:33]} Rd8 {[%clk 00:13:05]} {[%emt
00:00:08]} 28. Rc1 {[%clk 00:15:35]} {[%emt 00:00:07]} Rb1 {[%clk 00:12:55]}
{[%emt 00:00:21]} 29. Rxb1 {[%emt 00:00:27]} Nxb1 {[%emt 00:00:03]} 30. Kg2
{[%clk 00:15:12]} {[%emt 00:00:04]} a5 {[%clk 00:12:59]} {[%emt 00:00:07]} 31.
h3 {[%emt 00:00:07]} a4 {[%emt 00:00:02]} 32. h4 {[%clk 00:15:09]} {[%emt
00:00:03]} a3 {[%clk 00:13:05]} {[%emt 00:00:04]} 33. h5 {[%clk 00:15:06]}
{[%emt 00:00:03]} a2 {[%clk 00:13:13]} {[%emt 00:00:03]} 34. Kg3 {[%clk
00:15:22]} {[%emt 00:00:03]} a1=Q {[%emt 00:00:05]} 35. Kg4 {[%clk 00:15:24]}
{[%emt 00:00:06]} Qd4+ {[%clk 00:13:19]} {[%emt 00:00:10]} 36. Kg5 {[%clk
00:15:31]} {[%emt 00:00:04]} Qf4+ {[%clk 00:13:21]} {[%emt 00:00:06]} 0-1

[Event "Chessity Nationale Pupillendag 2018 - Groep H"]
[Site "Meppel, Netherlands"]
[Date "2018.06.23"]
[Round "5.1"]
[White "Gang, Kevin"]
[Black "Thijsen, Freek"]
[Result "1-0"]
[TimeControl "15 min + 10 sec"]
[WhiteElo "376"]
[BlackElo "610"]

1. e4 {[%clk 00:15:18]} e5 {[%clk 00:15:19]} {[%emt 00:00:02]} 2. Nf3 {[%clk
00:15:25]} {[%emt 00:00:03]} Nc6 {[%clk 00:15:28]} {[%emt 00:00:01]} 3. Bc4
{[%clk 00:15:33]} {[%emt 00:00:02]} Bc5 {[%clk 00:15:28]} {[%emt 00:00:10]} 4.
O-O {[%clk 00:15:39]} {[%emt 00:00:04]} Nf6 {[%clk 00:15:35]} {[%emt 00:00:04]}
5. Nc3 {[%clk 00:15:45]} {[%emt 00:00:04]} O-O {[%clk 00:15:41]} {[%emt
00:00:04]} 6. d3 {[%clk 00:15:53]} {[%emt 00:00:02]} d6 {[%clk 00:15:50]}
{[%emt 00:00:01]} 7. Bg5 {[%clk 00:15:59]} {[%emt 00:00:04]} Bg4 {[%clk
00:15:55]} {[%emt 00:00:05]} 8. Nd5 {[%clk 00:16:06]} {[%emt 00:00:03]} Bxf3
{[%clk 00:15:54]} {[%emt 00:00:10]} 9. Qxf3 {[%clk 00:16:13]} {[%emt 00:00:03]}
Nd4 {[%clk 00:15:51]} {[%emt 00:00:14]} 10. Qd1 {[%clk 00:16:11]} {[%emt
00:00:10]} Re8 {[%clk 00:15:37]} {[%emt 00:00:24]} 11. Bb5 {[%clk 00:16:17]}
{[%emt 00:00:05]} c6 {[%clk 00:15:44]} {[%emt 00:00:04]} 12. Nxf6+ {[%emt
00:00:08]} gxf6 {[%emt 00:00:05]} 13. Bxf6 {[%clk 00:15:52]} {[%emt 00:00:22]}
Qxf6 {[%clk 00:15:50]} {[%emt 00:00:04]} 14. Bc4 {[%clk 00:15:58]} {[%emt
00:00:03]} b5 {[%clk 00:15:50]} {[%emt 00:00:11]} 15. Bb3 {[%clk 00:16:04]}
{[%emt 00:00:04]} Nxb3 {[%clk 00:15:53]} {[%emt 00:00:07]} 16. cxb3 {[%clk
00:16:09]} {[%emt 00:00:05]} Re6 {[%clk 00:15:52]} {[%emt 00:00:11]} 17. a3
{[%clk 00:16:15]} {[%emt 00:00:04]} Bd4 {[%clk 00:15:56]} {[%emt 00:00:05]} 18.
Qg4+ {[%clk 00:16:18]} {[%emt 00:00:07]} Kh8 {[%clk 00:16:03]} {[%emt
00:00:04]} 19. Qh5 {[%clk 00:16:13]} {[%emt 00:00:15]} Rg8 {[%clk 00:15:58]}
{[%emt 00:00:16]} 20. g3 {[%clk 00:16:19]} {[%emt 00:00:04]} Rg5 {[%clk
00:16:00]} {[%emt 00:00:08]} 21. Qe2 {[%clk 00:16:26]} {[%emt 00:00:03]} Qf4
{[%clk 00:15:38]} {[%emt 00:00:32]} 22. h4 {[%clk 00:16:24]} {[%emt 00:00:11]}
Rg4 {[%clk 00:15:39]} {[%emt 00:00:10]} 23. Kh1 {[%clk 00:16:25]} {[%emt
00:00:08]} Qf6 {[%clk 00:15:32]} {[%emt 00:00:19]} 24. Qxg4 {[%clk 00:16:31]}
{[%emt 00:00:04]} Bxf2 {[%clk 00:15:18]} {[%emt 00:00:23]} 25. Rfc1 {[%clk
00:16:29]} {[%emt 00:00:11]} Qg6 {[%clk 00:15:04]} {[%emt 00:00:25]} 26. Qxg6
{[%clk 00:16:29]} {[%emt 00:00:10]} fxg6 {[%clk 00:15:12]} {[%emt 00:00:03]} 27.
Rxc6 {[%clk 00:16:35]} {[%emt 00:00:06]} Bxg3 {[%emt 00:00:10]} 28. Rf1 {[%emt
00:00:07]} Bxh4 {[%clk 00:14:55]} {[%emt 00:00:08]} 29. Rf7 {[%clk 00:16:39]}
{[%emt 00:00:07]} Kg8 {[%clk 00:14:57]} {[%emt 00:00:08]} 30. Rxa7 {[%clk
00:16:43]} {[%emt 00:00:06]} Rf6 {[%clk 00:14:56]} {[%emt 00:00:11]} 31. Rcc7
{[%clk 00:16:41]} {[%emt 00:00:12]} h5 {[%clk 00:14:27]} {[%emt 00:00:40]} 32.
Rc8+ {[%clk 00:16:46]} {[%emt 00:00:05]} Rf8 {[%clk 00:14:32]} {[%emt
00:00:04]} 33. Rxf8+ {[%clk 00:16:53]} {[%emt 00:00:03]} Kxf8 {[%clk 00:14:40]}
{[%emt 00:00:03]} 34. Rb7 {[%clk 00:16:55]} {[%emt 00:00:07]} Bg5 {[%clk
00:14:33]} {[%emt 00:00:16]} 35. Rb6 {[%clk 00:17:03]} {[%emt 00:00:03]} Bc1
{[%clk 00:14:39]} {[%emt 00:00:04]} 36. Rxd6 {[%clk 00:17:09]} {[%emt
00:00:05]} Bxb2 {[%clk 00:14:45]} {[%emt 00:00:03]} 37. Rxg6 {[%clk 00:17:17]}
{[%emt 00:00:03]} Bxa3 {[%clk 00:14:53]} {[%emt 00:00:03]} 38. Re6 {[%clk
00:17:21]} {[%emt 00:00:03]} Bb2 {[%emt 00:00:08]} 39. Rb6 {[%emt 00:00:03]} b4
{[%clk 00:14:44]} {[%emt 00:00:10]} 40. Rxb4 {[%clk 00:17:27]} {[%emt
00:00:04]} Bc3 {[%clk 00:14:51]} {[%emt 00:00:02]} 41. Rc4 {[%clk 00:17:34]}
{[%emt 00:00:03]} Bd4 {[%clk 00:14:55]} {[%emt 00:00:06]} 42. Kh2 {[%clk
00:17:27]} {[%emt 00:00:17]} Kg7 {[%emt 00:00:09]} 43. Rc6 {[%emt 00:00:01]} h4
{[%emt 00:00:12]} 44. Kh3 {[%emt 00:00:07]} Bf2 {[%clk 00:14:34]} {[%emt
00:00:04]} 45. b4 {[%clk 00:17:33]} {[%emt 00:00:03]} Bg3 {[%emt 00:00:10]} 46.
b5 {[%emt 00:00:03]} Bf2 {[%emt 00:00:06]} 47. b6 {[%emt 00:00:04]} Bxb6 {[%clk
00:14:18]} {[%emt 00:00:03]} 48. Rxb6 {[%clk 00:17:42]} Kh7 {[%emt 00:00:05]}
49. Kxh4 {[%emt 00:00:02]} Kg7 {[%emt 00:00:01]} 50. Kh5 {[%emt 00:00:02]} Kf7
{[%emt 00:00:01]} 51. Kg5 {[%emt 00:00:01]} Ke7 {[%emt 00:00:01]} 52. Rh6
{[%emt 00:00:02]} Kf7 {[%emt 00:00:03]} 53. Rf6+ {[%emt 00:00:09]} Ke7 {[%emt
00:00:04]} 54. Ra6 {[%emt 00:00:06]} Kd7 {[%emt 00:00:02]} 55. Rh6 {[%emt
00:00:02]} Ke7 {[%clk 00:13:47]} {[%emt 00:00:02]} 56. Kf5 {[%clk 00:17:51]}
{[%emt 00:00:01]} Kf7 {[%clk 00:13:55]} 57. Rh7+ {[%clk 00:17:59]} {[%emt
00:00:01]} Kg8 {[%clk 00:14:03]} {[%emt 00:00:03]} 58. Ra7 {[%clk 00:18:08]}
{[%emt 00:00:02]} Kf8 {[%clk 00:14:11]} 59. Ke6 {[%clk 00:18:16]} Kg8 {[%clk
00:14:17]} {[%emt 00:00:05]} 60. Kf6 {[%clk 00:18:25]} {[%emt 00:00:02]} Kh8
{[%clk 00:14:19]} {[%emt 00:00:06]} 61. Kg6 {[%clk 00:18:34]} Kg8 {[%emt
00:00:07]} 62. Ra8+ 1-0

[Event "Chessity Nationale Pupillendag 2018 - Groep H"]
[Site "Meppel, Netherlands"]
[Date "2018.06.23"]
[Round "5.2"]
[White "Huang, Luna"]
[Black "Geldof, Max"]
[Result "1-0"]
[TimeControl "15 min + 10 sec"]
[WhiteElo "488"]
[BlackElo "642"]

1. e4 {[%clk 00:15:19]} e5 {[%clk 00:15:19]} 2. Nf3 {[%clk 00:15:19]} Nc6
{[%clk 00:15:19]} 3. Bc4 {[%clk 00:15:19]} Bc5 {[%clk 00:15:19]} 4. Nc3 {[%emt
00:51:11]} Nf6 {[%clk 00:15:43]} 5. d3 {[%clk 00:15:49]} {[%emt 00:00:02]} d6
{[%clk 00:15:52]} {[%emt 00:00:02]} 6. Bg5 {[%clk 00:15:54]} {[%emt 00:00:04]}
Bg4 {[%clk 00:16:00]} {[%emt 00:00:02]} 7. h3 {[%clk 00:16:03]} Bh5 {[%clk
00:16:08]} {[%emt 00:00:03]} 8. Nd5 {[%clk 00:15:39]} {[%emt 00:00:34]} Nd4
{[%clk 00:16:07]} {[%emt 00:00:11]} 9. g4 {[%clk 00:15:23]} {[%emt 00:00:25]}
Bg6 {[%clk 00:16:06]} {[%emt 00:00:11]} 10. c3 {[%clk 00:15:01]} {[%emt
00:00:32]} Nxf3+ {[%clk 00:16:11]} {[%emt 00:00:05]} 11. Qxf3 {[%clk 00:15:07]}
{[%emt 00:00:05]} c6 {[%clk 00:16:20]} {[%emt 00:00:02]} 12. Nxf6+ {[%clk
00:15:03]} {[%emt 00:00:14]} gxf6 {[%clk 00:16:26]} {[%emt 00:00:03]} 13. Bxf6
{[%clk 00:15:07]} {[%emt 00:00:05]} Qb6 {[%clk 00:16:18]} {[%emt 00:00:17]} 14.
Bxh8 {[%clk 00:14:52]} {[%emt 00:00:27]} Qxb2 {[%clk 00:16:23]} {[%emt
00:00:05]} 15. O-O {[%clk 00:14:16]} O-O-O {[%clk 00:16:18]} {[%emt 00:01:00]}
16. Bf6 {[%emt 00:01:08]} Rd7 17. Rac1 {[%clk 00:13:31]} Ba3 {[%clk 00:16:24]}
{[%emt 00:00:10]} 18. d4 {[%clk 00:12:26]} {[%emt 00:01:16]} exd4 {[%clk
00:16:30]} {[%emt 00:00:04]} 19. Bxd4 {[%clk 00:12:03]} {[%emt 00:00:34]} Qxc1
{[%clk 00:16:34]} {[%emt 00:00:06]} 20. Rxc1 {[%clk 00:12:08]} {[%emt
00:00:06]} Bxc1 {[%clk 00:16:40]} {[%emt 00:00:02]} 21. Bxa7 {[%clk 00:11:47]}
{[%emt 00:00:32]} b5 {[%clk 00:16:42]} {[%emt 00:00:08]} 22. Bd3 {[%clk
00:10:45]} {[%emt 00:01:10]} Rxa7 {[%clk 00:16:46]} {[%emt 00:00:06]} 23. Qd1
{[%clk 00:09:58]} {[%emt 00:00:52]} Bb2 {[%clk 00:16:53]} {[%emt 00:00:09]} 24.
Qb3 {[%clk 00:09:38]} {[%emt 00:00:31]} Bc1 {[%clk 00:16:54]} {[%emt 00:00:08]}
25. c4 {[%clk 00:09:13]} {[%emt 00:00:36]} bxc4 {[%clk 00:17:02]} {[%emt
00:00:02]} 26. Qxc4 {[%clk 00:09:12]} {[%emt 00:00:10]} Kc7 {[%clk 00:16:59]}
{[%emt 00:00:13]} 27. Qxc1 {[%clk 00:09:00]} {[%emt 00:00:24]} d5 {[%clk
00:17:03]} {[%emt 00:00:05]} 28. Qc5 {[%clk 00:08:32]} {[%emt 00:00:32]} Rxa2
{[%clk 00:17:11]} {[%emt 00:00:08]} 29. Qe7+ {[%clk 00:08:18]} {[%emt
00:00:22]} Kb6 {[%clk 00:17:16]} {[%emt 00:00:04]} 30. Qb4+ {[%clk 00:08:23]}
{[%emt 00:00:06]} Kc7 {[%clk 00:17:23]} {[%emt 00:00:05]} 31. Bb1 {[%clk
00:07:52]} {[%emt 00:00:41]} Ra1 {[%clk 00:17:21]} {[%emt 00:00:11]} 32. f3
{[%clk 00:07:43]} {[%emt 00:00:19]} c5 {[%clk 00:17:25]} {[%emt 00:00:06]} 33.
Qxc5+ {[%clk 00:07:42]} {[%emt 00:00:11]} Kb8 {[%clk 00:17:23]} {[%emt
00:00:11]} 34. Qb6+ {[%clk 00:07:37]} {[%emt 00:00:16]} Kc8 {[%clk 00:17:23]}
{[%emt 00:00:09]} 35. Qc6+ {[%clk 00:07:34]} {[%emt 00:00:12]} Kb8 {[%clk
00:17:31]} {[%emt 00:00:03]} 36. Qd6+ {[%clk 00:07:30]} {[%emt 00:00:14]} Kc8
{[%clk 00:17:29]} {[%emt 00:00:13]} 37. Qc6+ {[%clk 00:06:32]} {[%emt
00:01:07]} Kb8 {[%clk 00:17:31]} {[%emt 00:00:09]} 38. Qe8+ {[%clk 00:06:22]}
{[%emt 00:00:16]} Kb7 {[%clk 00:17:32]} {[%emt 00:00:12]} 39. Qd7+ {[%clk
00:06:15]} {[%emt 00:00:18]} Kb6 {[%clk 00:17:29]} {[%emt 00:00:12]} 40. Qd6+
{[%clk 00:05:59]} {[%emt 00:00:26]} Ka7 {[%clk 00:17:20]} {[%emt 00:00:17]} 41.
Qxd5 {[%clk 00:05:31]} {[%emt 00:00:41]} Rxb1+ {[%clk 00:17:26]} {[%emt
00:00:04]} 42. Kg2 {[%clk 00:05:33]} {[%emt 00:00:08]} Rb2+ {[%clk 00:17:32]}
{[%emt 00:00:04]} 43. Kg3 {[%clk 00:05:39]} {[%emt 00:00:06]} Rb1 {[%clk
00:17:24]} {[%emt 00:00:18]} 44. Qa2+ {[%clk 00:05:39]} {[%emt 00:00:08]} Kb6
{[%clk 00:17:18]} {[%emt 00:00:17]} 45. Qxb1+ {[%clk 00:05:46]} {[%emt
00:00:02]} Kc5 {[%clk 00:17:25]} {[%emt 00:00:03]} 46. Qd3 {[%clk 00:05:38]}
{[%emt 00:00:18]} h6 {[%clk 00:17:27]} {[%emt 00:00:07]} 47. Qd5+ {[%clk
00:05:40]} {[%emt 00:00:08]} Kb6 {[%clk 00:17:34]} {[%emt 00:00:04]} 48. f4
{[%clk 00:05:44]} {[%emt 00:00:05]} Kc7 {[%clk 00:17:41]} {[%emt 00:00:05]} 49.
f5 {[%clk 00:05:52]} {[%emt 00:00:02]} Bh7 {[%clk 00:17:46]} {[%emt 00:00:04]}
50. e5 {[%clk 00:05:59]} {[%emt 00:00:03]} Bg8 {[%clk 00:17:50]} {[%emt
00:00:05]} 51. e6 {[%clk 00:06:02]} {[%emt 00:00:09]} f6 {[%emt 00:00:02]} 52.
h4 {[%emt 00:00:12]} Kc8 {[%clk 00:17:39]} {[%emt 00:00:07]} 53. Qd7+ {[%clk
00:05:59]} {[%emt 00:00:12]} Kb8 {[%clk 00:17:41]} {[%emt 00:00:08]} 54. Qd8+
{[%clk 00:06:03]} {[%emt 00:00:05]} Kb7 {[%clk 00:17:48]} {[%emt 00:00:03]} 55.
Qxg8 {[%clk 00:06:11]} {[%emt 00:00:03]} h5 {[%clk 00:17:56]} {[%emt 00:00:02]}
56. e7 {[%clk 00:06:11]} {[%emt 00:00:10]} Kb6 {[%clk 00:18:01]} {[%emt
00:00:05]} 57. e8=Q {[%clk 00:06:09]} {[%emt 00:00:11]} hxg4 {[%clk 00:18:07]}
{[%emt 00:00:05]} 58. Kxg4 {[%clk 00:06:11]} {[%emt 00:00:09]} Kc5 {[%clk
00:18:14]} {[%emt 00:00:02]} 59. Qd7 {[%clk 00:06:18]} {[%emt 00:00:04]} Kb4
{[%emt 00:00:08]} 60. Qgc8 {[%emt 00:00:04]} Ka5 {[%emt 00:00:07]} 61. Qdb7
{[%clk 00:06:05]} {[%emt 00:00:09]} Ka4 {[%clk 00:18:28]} {[%emt 00:00:02]} 62.
Qca8# {[%clk 00:06:12]} {[%emt 00:00:02]} 1-0

[Event "Chessity Nationale Pupillendag 2018 - Groep H"]
[Site "Meppel, Netherlands"]
[Date "2018.06.23"]
[Round "6.1"]
[White "Gang, Kevin"]
[Black "Huang, Luna"]
[Result "0-1"]
[TimeControl "15 min + 10 sec"]
[WhiteElo "376"]
[BlackElo "488"]

1. e4 {[%clk 00:15:19]} {[%emt 00:02:55]} e5 {[%clk 00:15:19]} {[%emt
00:00:02]} 2. Nf3 {[%clk 00:15:27]} {[%emt 00:00:01]} Nc6 {[%clk 00:15:27]}
{[%emt 00:00:02]} 3. Bc4 {[%clk 00:15:35]} {[%emt 00:00:02]} Bc5 {[%clk
00:15:35]} {[%emt 00:00:02]} 4. Nc3 {[%clk 00:15:43]} {[%emt 00:00:02]} Nf6
{[%clk 00:15:43]} {[%emt 00:00:01]} 5. O-O {[%clk 00:15:50]} {[%emt 00:00:03]}
d6 {[%clk 00:15:48]} {[%emt 00:00:05]} 6. d3 {[%clk 00:15:56]} {[%emt
00:00:04]} Bg4 {[%clk 00:15:50]} {[%emt 00:00:08]} 7. Bg5 {[%clk 00:16:04]}
{[%emt 00:00:03]} h6 {[%clk 00:15:59]} {[%emt 00:00:01]} 8. Bxf6 {[%clk
00:16:10]} {[%emt 00:00:04]} Qxf6 {[%clk 00:15:49]} {[%emt 00:00:20]} 9. Nd5
{[%clk 00:16:15]} {[%emt 00:00:04]} Qd8 {[%clk 00:15:35]} {[%emt 00:00:24]} 10.
h3 {[%clk 00:16:23]} {[%emt 00:00:04]} Bh5 {[%clk 00:15:44]} {[%emt 00:00:01]}
11. Qd2 {[%clk 00:16:23]} {[%emt 00:00:08]} Bxf3 {[%clk 00:15:24]} {[%emt
00:00:31]} 12. gxf3 {[%emt 00:00:17]} Nd4 {[%clk 00:15:08]} {[%emt 00:00:09]}
13. Qd1 {[%clk 00:16:15]} {[%emt 00:00:26]} c6 {[%clk 00:15:13]} {[%emt
00:00:07]} 14. Nc3 {[%clk 00:16:14]} {[%emt 00:00:11]} Qg5+ {[%clk 00:14:39]}
{[%emt 00:00:42]} 15. Kh1 {[%clk 00:16:22]} {[%emt 00:00:05]} Qh4 {[%clk
00:14:28]} {[%emt 00:00:18]} 16. Kh2 {[%clk 00:16:27]} {[%emt 00:00:06]} Qf4
{[%clk 00:14:33]} {[%emt 00:00:06]} 17. Kg2 {[%clk 00:16:35]} {[%emt 00:00:03]}
h5 {[%clk 00:13:33]} {[%emt 00:01:10]} 18. Rg1 {[%clk 00:16:40]} {[%emt
00:00:06]} g5 {[%clk 00:13:07]} {[%emt 00:00:35]} 19. Kf1 {[%clk 00:16:44]}
{[%emt 00:00:06]} Nxf3 {[%clk 00:12:54]} {[%emt 00:00:25]} 20. Ne2 {[%clk
00:16:44]} {[%emt 00:00:10]} Nh2+ {[%clk 00:12:30]} {[%emt 00:00:34]} 21. Kg2
{[%clk 00:16:20]} {[%emt 00:00:32]} Qxf2+ {[%clk 00:12:16]} {[%emt 00:00:25]}
22. Kh1 {[%clk 00:16:20]} {[%emt 00:00:05]} Nf3 {[%clk 00:12:15]} {[%emt
00:00:16]} 23. Rf1 {[%clk 00:16:09]} {[%emt 00:00:21]} Qh2 {[%clk 00:12:21]}
{[%emt 00:00:05]} 0-1

[Event "Chessity Nationale Pupillendag 2018 - Groep H"]
[Site "Meppel, Netherlands"]
[Date "2018.06.23"]
[Round "6.2"]
[White "Thijsen, Freek"]
[Black "Rooijakkers, Liam"]
[Result "1-0"]
[TimeControl "15 min + 10 sec"]
[WhiteElo "610"]
[BlackElo "523"]

1. e4 {[%emt 00:06:35]} c5 {[%clk 00:15:19]} 2. Bc4 {[%clk 00:15:25]} {[%emt
00:00:02]} Nc6 {[%clk 00:15:28]} {[%emt 00:00:02]} 3. Nf3 {[%clk 00:15:32]}
{[%emt 00:00:02]} g6 {[%clk 00:15:36]} {[%emt 00:00:02]} 4. Ng5 {[%clk
00:15:36]} {[%emt 00:00:06]} e6 {[%clk 00:15:44]} {[%emt 00:00:02]} 5. O-O
{[%clk 00:15:41]} {[%emt 00:00:05]} Bg7 {[%clk 00:15:51]} {[%emt 00:00:03]} 6.
Nc3 {[%clk 00:15:47]} {[%emt 00:00:04]} Nge7 {[%clk 00:15:59]} {[%emt
00:00:03]} 7. d3 {[%clk 00:15:50]} {[%emt 00:00:06]} O-O {[%clk 00:16:04]}
{[%emt 00:00:06]} 8. Be3 {[%clk 00:15:43]} {[%emt 00:00:16]} b5 {[%clk
00:16:05]} {[%emt 00:00:09]} 9. Bxb5 {[%clk 00:15:49]} {[%emt 00:00:03]} Qb6
{[%clk 00:16:09]} {[%emt 00:00:07]} 10. Bxc6 {[%clk 00:15:43]} {[%emt
00:00:16]} Nxc6 {[%clk 00:16:15]} {[%emt 00:00:04]} 11. Na4 {[%clk 00:15:37]}
{[%emt 00:00:16]} Qd8 {[%clk 00:16:15]} {[%emt 00:00:10]} 12. Nxc5 {[%clk
00:15:30]} {[%emt 00:00:18]} Bh6 {[%emt 00:00:07]} 13. Qd2 {[%clk 00:15:27]}
{[%emt 00:00:11]} Bg7 {[%clk 00:16:16]} {[%emt 00:00:13]} 14. g3 {[%clk
00:15:23]} {[%emt 00:00:14]} d5 {[%clk 00:16:21]} {[%emt 00:00:05]} 15. exd5
{[%clk 00:15:27]} {[%emt 00:00:05]} Qxd5 {[%clk 00:16:28]} {[%emt 00:00:03]} 16.
Rfe1 {[%clk 00:15:16]} {[%emt 00:00:22]} Bb7 {[%clk 00:16:34]} {[%emt
00:00:04]} 17. c4 {[%clk 00:15:13]} {[%emt 00:00:12]} Qd6 {[%clk 00:16:37]}
{[%emt 00:00:07]} 18. Nxb7 {[%clk 00:15:18]} {[%emt 00:00:05]} Qc7 {[%clk
00:16:40]} {[%emt 00:00:08]} 19. Nc5 {[%clk 00:15:22]} {[%emt 00:00:06]} Qd6
{[%clk 00:16:35]} {[%emt 00:00:15]} 20. Nb3 {[%clk 00:15:23]} {[%emt 00:00:09]}
Nb4 {[%clk 00:16:20]} {[%emt 00:00:25]} 21. Bc5 {[%clk 00:15:26]} {[%emt
00:00:07]} Qxd3 {[%clk 00:16:15]} {[%emt 00:00:15]} 22. Qxd3 {[%clk 00:15:11]}
{[%emt 00:00:25]} Nxd3 {[%clk 00:16:20]} {[%emt 00:00:05]} 23. Bxf8 {[%clk
00:14:59]} {[%emt 00:00:22]} Nxe1 {[%clk 00:16:23]} {[%emt 00:00:07]} 24. Bxg7
{[%clk 00:15:04]} {[%emt 00:00:05]} Kxg7 {[%clk 00:16:29]} {[%emt 00:00:04]} 25.
Rxe1 {[%clk 00:15:10]} {[%emt 00:00:04]} f6 {[%clk 00:16:29]} {[%emt 00:00:10]}
26. Nxe6+ {[%clk 00:15:18]} Kf7 {[%clk 00:16:36]} {[%emt 00:00:06]} 27. Nc7
{[%clk 00:15:22]} Rc8 {[%clk 00:16:38]} {[%emt 00:00:13]} 28. Nb5 {[%emt
00:00:12]} a6 {[%clk 00:16:43]} 29. Nd6+ {[%emt 00:00:04]} Kg7 {[%clk
00:16:47]} {[%emt 00:00:03]} 30. Nxc8 {[%emt 00:00:10]} h5 {[%clk 00:16:50]} 31.
Nc5 {[%clk 00:15:42]} {[%emt 00:00:08]} a5 {[%clk 00:16:56]} {[%emt 00:00:04]}
32. Ne6+ {[%clk 00:15:48]} {[%emt 00:00:03]} Kh6 {[%clk 00:17:04]} {[%emt
00:00:02]} 33. Nc5 {[%clk 00:15:45]} {[%emt 00:00:12]} g5 {[%clk 00:17:09]}
{[%emt 00:00:06]} 34. Re8 {[%clk 00:15:51]} {[%emt 00:00:04]} Kg7 {[%clk
00:17:07]} {[%emt 00:00:12]} 35. Nd6 {[%clk 00:15:49]} {[%emt 00:00:12]} Kg6
{[%clk 00:17:10]} {[%emt 00:00:08]} 36. Ra8 {[%clk 00:15:50]} {[%emt 00:00:08]}
f5 {[%clk 00:17:17]} {[%emt 00:00:03]} 37. Rxa5 {[%clk 00:15:57]} {[%emt
00:00:03]} g4 {[%clk 00:17:25]} {[%emt 00:00:02]} 38. b4 {[%clk 00:16:04]}
{[%emt 00:00:04]} Kg5 {[%clk 00:17:34]} 39. b5 {[%clk 00:16:10]} {[%emt
00:00:04]} f4 {[%clk 00:17:42]} {[%emt 00:00:02]} 40. gxf4+ {[%clk 00:16:17]}
{[%emt 00:00:02]} Kxf4 {[%clk 00:17:50]} {[%emt 00:00:03]} 41. b6 {[%clk
00:16:25]} h4 {[%clk 00:17:59]} {[%emt 00:00:02]} 42. b7 {[%clk 00:16:33]}
{[%emt 00:00:01]} g3 {[%clk 00:18:08]} {[%emt 00:00:02]} 43. fxg3+ {[%clk
00:16:39]} {[%emt 00:00:03]} hxg3 {[%clk 00:18:14]} {[%emt 00:00:04]} 44. hxg3+
{[%clk 00:16:45]} {[%emt 00:00:04]} Kxg3 {[%clk 00:18:21]} {[%emt 00:00:02]} 45.
b8=Q {[%emt 00:00:06]} Kf3 {[%emt 00:00:06]} 46. Qf8+ {[%clk 00:16:39]} {[%emt
00:00:05]} Ke2 {[%clk 00:18:30]} {[%emt 00:00:03]} 47. Qf2+ {[%clk 00:16:36]}
{[%emt 00:00:12]} Kd1 {[%clk 00:18:36]} {[%emt 00:00:04]} 48. Rb5 {[%clk
00:16:38]} {[%emt 00:00:08]} Kc1 {[%clk 00:18:40]} {[%emt 00:00:05]} 49. Rb6
{[%clk 00:16:45]} {[%emt 00:00:03]} Kd1 {[%clk 00:18:47]} {[%emt 00:00:04]} 50.
Rb1# {[%clk 00:16:53]} {[%emt 00:00:02]} 1-0